bitfinex/quotes_BTCUSD_20251217
["timestamp","ask_amount","ask_price","bid_price","bid_amount"]
[1765951780828,0.01150483,86920.0,86919.0,0.22933263]
[1765951781171,0.0115035,86930.0,86927.0,0.11573]
[1765951781306,0.0115035,86930.0,86928.0,0.11573]
[1765951781656,0.24157618,86930.0,86928.0,0.11573]
[1765951782710,0.0012,86929.0,86928.0,0.11573]
[1765951783299,0.0022,86929.0,86928.0,0.11573]
[1765951783701,0.2300834,86925.0,86924.0,0.11355926]
[1765951783884,0.24159035,86924.0,86921.0,0.03524]
[1765951784085,0.23009134,86922.0,86921.0,0.03524]
[1765951784292,0.23009134,86922.0,86913.0,0.03387]
[1765951784293,0.23009664,86920.0,86919.0,4.337e-05]
[1765951784505,0.23009664,86920.0,86919.0,0.11577337]
[1765951785127,0.2415959,86922.0,86921.0,0.15097]
[1765951785705,0.24158333,86927.0,86926.0,0.11573]
[1765951786286,0.25235473,86927.0,86926.0,0.11573]
[1765951787406,0.25235473,86927.0,86921.0,0.03685287]
[1765951787407,0.23009134,86922.0,86921.0,0.00161287]
[1765951787614,0.23009664,86920.0,86919.0,4.337e-05]
[1765951788877,0.0115039,86927.0,86919.0,4.337e-05]
[1765951788878,0.0002,86942.0,86930.0,0.00099999]
[1765951789088,0.0002,86942.0,86941.0,2.08286158]
[1765951789297,0.01076942,86983.0,86951.0,0.63427386]
[1765951789508,0.07438,86990.0,86951.0,0.65412673]
[1765951789713,0.01149438,86999.0,86951.0,0.71491454]
[1765951789714,1e-08,86952.0,86951.0,0.71491454]
[1765951789936,0.01149451,86998.0,86968.0,0.3435289]
[1765951790146,0.03422,86999.0,86968.0,0.36338177]
[1765951790364,0.00510427,86969.0,86968.0,0.36338177]
[1765951791646,0.00510427,86969.0,86968.0,0.36538177]
[1765951792343,0.00510427,86969.0,86968.0,0.34714177]
[1765951792546,0.00510427,86969.0,86968.0,0.23558251]
[1765951792992,0.00510427,86969.0,86968.0,0.00561287]
[1765951793643,0.00510427,86969.0,86968.0,0.36538177]
[1765951793845,0.00510427,86969.0,86968.0,0.34814177]
[1765951793999,0.00510427,86969.0,86968.0,0.36438177]
[1765951794485,0.00510427,86969.0,86968.0,0.36338177]
[1765951794671,0.00510427,86969.0,86968.0,0.36538177]
[1765951794880,0.00510427,86969.0,86968.0,0.65608177]
[1765951795286,0.00510427,86969.0,86968.0,0.65508177]
[1765951795500,0.00510427,86969.0,86968.0,0.65608177]
[1765951795917,0.00510427,86969.0,86968.0,0.65808177]
[1765951796055,0.00510427,86969.0,86968.0,0.65608177]
[1765951796455,0.00510427,86969.0,86968.0,0.65908177]
[1765951796678,0.00510427,86969.0,86968.0,0.65708177]
[1765951797080,0.00510427,86969.0,86968.0,0.66008177]
[1765951797661,0.00510427,86969.0,86968.0,0.84075116]
[1765951798155,0.00510427,86969.0,86968.0,0.92761985]
[1765951798963,0.00510427,86969.0,86968.0,0.7271919]
[1765951799265,0.00510427,86969.0,86968.0,0.87529763]
[1765951799852,0.00510427,86969.0,86968.0,0.85705763]
[1765951800092,0.00510427,86969.0,86968.0,0.87529763]
[1765951800710,0.00510427,86969.0,86968.0,0.85705763]
[1765951800935,0.00510427,86969.0,86968.0,0.87529763]
[1765951801319,0.00510427,86969.0,86968.0,0.74464663]
[1765951801520,0.00510427,86969.0,86968.0,0.63108737]
[1765951801725,0.00510427,86969.0,86968.0,0.72640663]
[1765951801925,0.00510427,86969.0,86968.0,0.74464663]
[1765951802135,1e-08,86969.0,86968.0,2.13340263]
[1765951802294,0.00798698,87020.0,86999.0,0.34344695]
[1765951802295,0.01149174,87019.0,86999.0,0.34344695]
[1765951802502,0.24931125,87020.0,86999.0,0.36173032]
[1765951802503,0.01149306,87009.0,86999.0,0.36173032]
[1765951802703,1.98102093,87000.0,86999.0,0.36173032]
[1765951803107,1.98102093,87000.0,86999.0,0.24817106]
[1765951803746,1.98102093,87000.0,86999.0,0.65404319]
[1765951803954,1.98102093,87000.0,86999.0,0.70406158]
[1765951804952,1.98202093,87000.0,86999.0,0.70406158]
[1765951805266,1.98102093,87000.0,86999.0,0.68582158]
[1765951805430,1.98102093,87000.0,86999.0,0.70706158]
[1765951806076,1.98102093,87000.0,86999.0,0.70806158]
[1765951806282,1.98102093,87000.0,86999.0,0.68982158]
[1765951806476,1.98102093,87000.0,86999.0,0.70706158]
[1765951806852,1.98102093,87000.0,86999.0,0.71006158]
[1765951808446,1.98102093,87000.0,86999.0,0.71030158]
[1765951808894,0.55686949,87000.0,86999.0,2.44635058]
[1765951809103,0.55686949,87000.0,86999.0,2.44647058]
[1765951809104,0.22668793,87000.0,86999.0,2.44647058]
[1765951809303,0.13499795,87000.0,86999.0,2.44635058]
[1765951809549,0.1004801,87000.0,86999.0,2.44647058]
[1765951809774,0.01148976,87034.0,87019.0,0.63421412]
[1765951809983,0.03714,87046.0,87019.0,0.63421412]
[1765951809984,0.01148936,87037.0,87019.0,0.65418699]
[1765951810210,0.0114891,87039.0,87019.0,0.65418699]
[1765951810211,0.01148989,87033.0,87019.0,0.65418699]
[1765951810426,0.0086178,87020.0,87019.0,0.66567635]
[1765951810865,0.0086178,87020.0,87019.0,0.63582699]
[1765951811324,0.0086178,87020.0,87019.0,0.42423213]
[1765951811544,0.0086178,87020.0,87019.0,0.40599213]
[1765951811767,0.0086178,87020.0,87019.0,0.13365213]
[1765951811986,0.0086178,87020.0,87019.0,0.13465213]
[1765951812216,0.0086178,87020.0,87019.0,0.13665213]
[1765951812848,0.0086178,87020.0,87019.0,0.40711213]
[1765951813047,0.0086178,87020.0,87019.0,0.42535213]
[1765951813323,0.0086178,87020.0,87019.0,0.13565213]
[1765951813805,0.0086178,87020.0,87019.0,0.13465213]
[1765951814415,0.0086178,87020.0,87019.0,0.18467052]
[1765951814616,0.0086178,87020.0,87019.0,0.19846061]
[1765951815464,0.0086178,87020.0,87019.0,0.19746061]
[1765951815666,0.0086178,87020.0,87019.0,0.48816061]
[1765951815881,0.0086178,87020.0,87019.0,0.47537052]
[1765951816614,0.0086178,87020.0,87019.0,0.57320493]
[1765951816816,1e-08,87020.0,87019.0,1.62507867]
[1765951817019,1e-08,87020.0,87019.0,1.73887793]
[1765951817224,1e-08,87020.0,87019.0,1.73687793]
[1765951817400,1e-08,87020.0,87019.0,1.73887793]
[1765951817760,1e-08,87020.0,87019.0,1.74087793]
[1765951819416,1e-08,87020.0,87019.0,1.29062912]
[1765951819628,1e-08,87020.0,87019.0,0.96951211]
[1765951820126,1e-08,87020.0,87019.0,1.05779656]
[1765951820349,0.01148646,87059.0,87053.0,0.01148725]
[1765951820545,0.01148646,87059.0,87054.0,0.02972712]
[1765951820958,0.22974732,87053.0,87048.0,0.11355926]
[1765951821155,0.03714,87060.0,87049.0,0.01824]
[1765951821156,0.01148685,87056.0,87049.0,0.01824]
[1765951821382,0.01148685,87056.0,87051.0,0.22975003]
[1765951821583,0.01148725,87053.0,87049.0,0.01824]
[1765951821734,0.01148751,87051.0,87050.0,0.01824]
[1765951821946,0.01148725,87053.0,87050.0,0.01824]
[1765951822171,0.01148712,87054.0,87053.0,0.00012]
[1765951822386,0.01148699,87055.0,87051.0,0.01148751]
[1765951822593,0.22974773,87052.0,87045.0,0.01148831]
[1765951822821,0.01148778,87049.0,87046.0,0.01824]
[1765951823032,0.01148831,87045.0,87040.0,0.24126719]
[1765951823231,0.001,87053.0,87036.0,0.01148949]
[1765951823232,0.0114891,87039.0,87036.0,0.01148949]
[1765951823437,0.0114887,87042.0,87037.0,0.02972936]
[1765951823642,0.0114887,87042.0,87038.0,0.01148923]
[1765951823843,0.01148949,87036.0,87032.0,0.01149002]
[1765951824048,0.01148949,87036.0,87033.0,0.01824]
[1765951824414,0.01148949,87036.0,87024.0,0.01149108]
[1765951824415,0.01149002,87032.0,87024.0,0.01149108]
[1765951824799,0.01148963,87035.0,87032.0,0.01149002]
[1765951825113,0.01148949,87036.0,87032.0,0.01149002]
[1765951825304,0.001,87036.0,87033.0,0.01148989]
[1765951825583,0.01148949,87036.0,87032.0,0.01149002]
[1765951825789,0.01148963,87035.0,87031.0,0.01149015]
[1765951825991,0.01148976,87034.0,87031.0,0.01149015]
[1765951826243,0.16857441,87053.0,87034.0,0.01148976]
[1765951826445,0.01148936,87037.0,87033.0,0.01148989]
[1765951826870,0.01148923,87038.0,87034.0,0.01148976]
[1765951827045,0.001,87035.0,87034.0,0.01148976]
[1765951827190,0.01148936,87037.0,87034.0,0.01824]
[1765951827397,0.24127892,87037.0,87034.0,0.01824]
[1765951827609,0.24127892,87037.0,87029.0,0.01149042]
[1765951827610,0.01148976,87034.0,87029.0,0.01149042]
[1765951827816,0.01148989,87033.0,87030.0,0.02969029]
[1765951828046,0.01148989,87033.0,87031.0,0.0182]
[1765951828727,0.01149042,87029.0,87025.0,0.01149095]
[1765951829112,0.01149055,87028.0,87027.0,0.00012]
[1765951829691,0.01149029,87030.0,87027.0,0.00012]
[1765951829890,0.01149029,87030.0,87027.0,0.00016337]
[1765951830149,0.24129611,87030.0,87028.0,0.0182]
[1765951830431,0.24129611,87030.0,87027.0,4.337e-05]
[1765951830432,0.01149029,87030.0,87027.0,4.337e-05]
[1765951830638,0.01149029,87030.0,87029.0,0.0182]
[1765951830808,0.24129843,87030.0,87027.0,4.337e-05]
[1765951831013,0.24129843,87030.0,87029.0,0.0182]
[1765951831215,0.22981109,87028.0,87027.0,4.337e-05]
[1765951831791,0.34720109,87028.0,87027.0,0.00104337]
[1765951831992,0.63790109,87028.0,87027.0,0.00104337]
[1765951832195,0.75290125,87028.0,87027.0,0.00104337]
[1765951832523,0.75290125,87028.0,87027.0,4.337e-05]
[1765951832741,0.75390125,87028.0,87027.0,4.337e-05]
[1765951833776,0.75790125,87028.0,87027.0,4.337e-05]
[1765951834128,0.75690125,87028.0,87027.0,4.337e-05]
[1765951834333,0.75990125,87028.0,87027.0,4.337e-05]
[1765951837374,0.76015352,87028.0,87027.0,4.337e-05]
[1765951839421,0.01149478,86996.0,86995.0,0.11367926]
[1765951839606,0.01149451,86998.0,86997.0,0.00012]
[1765951840109,0.01149438,86999.0,86997.0,0.00012]
[1765951840466,0.2298902,86999.0,86997.0,0.00012]
[1765951840678,0.24138458,86999.0,86997.0,0.00012]
[1765951841312,0.24138458,86999.0,86997.0,0.00112]
[1765951841708,0.24138458,86999.0,86997.0,0.001]
[1765951842880,0.04863,86998.0,86997.0,0.001]
[1765951843099,0.04863,86998.0,86995.0,5.659e-05]
[1765951843100,0.12134,86996.0,86995.0,5.659e-05]
[1765951844683,0.12334,86996.0,86995.0,5.659e-05]
[1765951845005,0.12434,86996.0,86995.0,5.659e-05]
[1765951846201,0.23934016,86996.0,86995.0,5.659e-05]
[1765951846785,0.12434,86996.0,86995.0,5.659e-05]
[1765951847155,0.23934016,86996.0,86995.0,5.659e-05]
[1765951847369,0.12434,86996.0,86995.0,5.659e-05]
[1765951847789,0.18175018,86996.0,86995.0,5.659e-05]
[1765951848210,0.12434,86996.0,86995.0,5.659e-05]
[1765951849464,0.05163,86996.0,86995.0,5.659e-05]
[1765951849686,0.003,86996.0,86995.0,5.659e-05]
[1765951850335,0.12434,86996.0,86995.0,5.659e-05]
[1765951852884,0.23934016,86996.0,86995.0,5.659e-05]
[1765951853496,0.28858191,86997.0,86995.0,5.659e-05]
[1765951853651,0.04863,86996.0,86995.0,5.659e-05]
[1765951854078,0.17358175,86997.0,86995.0,5.659e-05]
[1765951854521,0.04863,86996.0,86995.0,5.659e-05]
[1765951856662,0.04963,86996.0,86995.0,5.659e-05]
[1765951857413,0.05063,86996.0,86995.0,5.659e-05]
[1765951861074,0.002,86996.0,86995.0,0.03555659]
[1765951861895,0.002,86996.0,86995.0,5.659e-05]
[1765951865418,0.12027,86996.0,86995.0,5.659e-05]
[1765951866968,0.002,86996.0,86995.0,5.659e-05]
[1765951867359,0.01149504,86994.0,86991.0,0.00791881]
[1765951867644,0.24139761,86994.0,86991.0,6.119e-05]
[1765951867854,0.22990537,86993.0,86991.0,6.119e-05]
[1765951868065,0.24139761,86994.0,86991.0,6.119e-05]
[1765951868602,0.01149517,86993.0,86991.0,6.119e-05]
[1765951869803,0.01249517,86993.0,86991.0,6.119e-05]
[1765951870014,0.24240077,86993.0,86991.0,6.119e-05]
[1765951870212,0.001,86993.0,86992.0,0.34803619]
[1765951870437,0.001,86993.0,86992.0,0.46320832]
[1765951871636,0.001,86993.0,86992.0,0.52433576]
[1765951872044,0.2413408,87014.0,86992.0,0.52433576]
[1765951872045,0.0114924,87014.0,87013.0,0.07036]
[1765951872678,0.0114924,87014.0,87013.0,0.14336]
[1765951873163,0.0114924,87014.0,87013.0,0.02523]
[1765951873566,0.0114924,87014.0,87006.0,0.01149346]
[1765951873567,0.22985071,87013.0,87006.0,0.01149346]
[1765951873794,0.22986656,87007.0,87006.0,0.0355]
[1765951874629,0.22986656,87007.0,87002.0,0.0355]
[1765951874630,0.22987713,87003.0,87002.0,0.0355]
[1765951874874,0.22987713,87003.0,87002.0,0.0537]
[1765951875687,0.22987713,87003.0,87002.0,0.0355]
[1765951875901,0.22987713,87003.0,87002.0,0.0365]
[1765951876099,0.24135988,87007.0,87002.0,0.0365]
[1765951876244,0.01149293,87010.0,87006.0,0.01149346]
[1765951876450,0.01149306,87009.0,87006.0,0.01149346]
[1765951876673,0.01149319,87008.0,87005.0,0.073]
[1765951876870,0.22986656,87007.0,87005.0,0.073]
[1765951877080,0.22987184,87005.0,87004.0,0.0355]
[1765951877535,0.22987713,87003.0,87002.0,0.0365]
[1765951877788,0.22987713,87003.0,87002.0,0.0355]
[1765951877996,0.22988769,86999.0,86998.0,0.0182]
[1765951878352,0.22988769,86999.0,86997.0,0.0537]
[1765951878558,0.01149398,87002.0,86999.0,0.04513]
[1765951878764,0.22988959,86999.0,86997.0,0.0355]
[1765951879550,0.22988959,86999.0,86997.0,0.0365]
[1765951880161,0.01149425,87000.0,86997.0,0.0365]
[1765951880777,0.24138124,87000.0,86997.0,0.0365]
[1765951881179,0.01149425,87000.0,86997.0,0.04899464]
[1765951881383,0.01149425,87000.0,86997.0,0.04799464]
[1765951881713,0.06556898,87050.0,87025.0,0.01149095]
[1765951881924,0.06941,87070.0,87027.0,0.39500425]
[1765951882124,0.01148567,87065.0,87027.0,0.39500425]
[1765951882324,0.01148553,87066.0,87027.0,0.456136]
[1765951882502,0.24119157,87068.0,87027.0,0.39500425]
[1765951882684,0.0114858,87064.0,87027.0,0.39500425]
[1765951882882,0.24120644,87063.0,87027.0,0.39506544]
[1765951883122,0.22972404,87061.0,87027.0,0.39506544]
[1765951883323,0.01148619,87061.0,87027.0,0.39506544]
[1765951883820,0.01148646,87059.0,87027.0,0.39506544]
[1765951884217,0.01148619,87061.0,87027.0,0.39506544]
[1765951884431,0.01148646,87059.0,87027.0,0.39906544]
[1765951884637,0.01148685,87056.0,87027.0,0.39906544]
[1765951884814,0.01148712,87054.0,87027.0,0.45785517]
[1765951885270,0.01148672,87057.0,87027.0,0.45785517]
[1765951885487,0.01148646,87059.0,87027.0,0.45785517]
[1765951885488,0.01148778,87049.0,87027.0,0.30378618]
[1765951885675,0.01148791,87048.0,87027.0,0.41734544]
[1765951885886,0.01148831,87045.0,87027.0,0.41734544]
[1765951886087,0.01148831,87045.0,87027.0,0.36732705]
[1765951886302,0.01148804,87047.0,87027.0,0.39769018]
[1765951886502,0.01148817,87046.0,87027.0,0.39769018]
[1765951886703,0.01148804,87047.0,87027.0,0.39769018]
[1765951887357,0.01148804,87047.0,87027.0,0.36732705]
[1765951887787,0.01148791,87048.0,87027.0,0.36732705]
[1765951888048,0.01148751,87051.0,87027.0,0.36732705]
[1765951888207,0.01148725,87053.0,87027.0,0.36732705]
[1765951888653,0.24120393,87064.0,87027.0,0.41734544]
[1765951889168,0.01148593,87063.0,87027.0,0.44770857]
[1765951889402,0.01148606,87062.0,87027.0,0.44770857]
[1765951889757,0.01148619,87061.0,87027.0,0.44770857]
[1765951890024,0.01148633,87060.0,87027.0,0.44770857]
[1765951890535,0.01148633,87060.0,87027.0,0.41734544]
[1765951890536,0.24121307,87060.0,87027.0,0.41734544]
[1765951890686,0.01148619,87061.0,87027.0,0.41734544]
[1765951890894,0.01148606,87062.0,87027.0,0.44770857]
[1765951891167,0.01148633,87060.0,87027.0,0.44770857]
[1765951891374,0.01148619,87061.0,87027.0,0.44770857]
[1765951891513,0.01148606,87062.0,87027.0,0.41734544]
[1765951891717,0.01148619,87061.0,87027.0,0.41734544]
[1765951891939,0.01148672,87057.0,87027.0,0.41734544]
[1765951892350,0.01148699,87055.0,87027.0,0.41734544]
[1765951892580,0.01148725,87053.0,87027.0,0.41730544]
[1765951892787,0.01148699,87055.0,87027.0,0.41730544]
[1765951893386,0.01148659,87058.0,87027.0,0.41730544]
[1765951893597,0.01148646,87059.0,87027.0,0.41730544]
[1765951893834,0.01148633,87060.0,87027.0,0.41730544]
[1765951894048,0.01148685,87056.0,87027.0,0.41730544]
[1765951894253,0.01148712,87054.0,87027.0,0.41730544]
[1765951894461,0.01148699,87055.0,87027.0,0.41730544]
[1765951894635,0.22972929,87059.0,87027.0,0.41730544]
[1765951894793,0.22973443,87058.0,87027.0,0.41730544]
[1765951895010,2.27e-06,87028.0,87027.0,0.41730544]
[1765951898564,2.27e-06,87028.0,87027.0,0.41738544]
[1765951900327,2.27e-06,87028.0,87027.0,0.45789517]
[1765951902439,2.27e-06,87028.0,87027.0,0.41738544]
[1765951906363,2.27e-06,87028.0,87027.0,0.76921719]
[1765951907178,2.27e-06,87028.0,87027.0,0.76721719]
[1765951907502,2.27e-06,87028.0,87027.0,0.70708544]
[1765951907907,2.27e-06,87028.0,87027.0,0.71008544]
[1765951909111,0.01148422,87076.0,87075.0,0.11355926]
[1765951909753,0.2411714,87075.0,87072.0,0.11355926]
[1765951909968,0.22969232,87073.0,87072.0,0.11355926]
[1765951910188,0.0114829,87086.0,87082.0,0.01148342]
[1765951910384,0.03652,87111.0,87080.0,4e-05]
[1765951910385,0.01148356,87081.0,87080.0,4e-05]
[1765951910588,0.01148382,87079.0,87074.0,0.01148448]
[1765951910810,0.24116227,87079.0,87077.0,0.01824]
[1765951910980,0.00037757,87081.0,87080.0,0.11363926]
[1765951911204,0.00037757,87081.0,87080.0,0.12741969]
[1765951911406,0.00037757,87081.0,87080.0,0.12903256]
[1765951911611,0.00037757,87081.0,87080.0,0.21308654]
[1765951912028,0.00137757,87081.0,87080.0,0.21308654]
[1765951912227,0.00137757,87081.0,87080.0,0.24349227]
[1765951912404,0.00137757,87081.0,87080.0,0.21308654]
[1765951912405,0.00037757,87081.0,87080.0,0.21308654]
[1765951912612,0.00037757,87081.0,87080.0,0.22686697]
[1765951912812,0.00037757,87081.0,87080.0,0.21308654]
[1765951913016,0.00037757,87081.0,87080.0,0.44024567]
[1765951913220,0.00037757,87081.0,87080.0,0.55380493]
[1765951913652,0.00137757,87081.0,87080.0,0.55480493]
[1765951914002,0.00037757,87081.0,87080.0,0.55380493]
[1765951914203,0.00037757,87081.0,87080.0,0.55680493]
[1765951914451,0.00037757,87081.0,87080.0,0.55980493]
[1765951914677,0.00037757,87081.0,87080.0,0.11825213]
[1765951914862,0.00037757,87081.0,87080.0,0.13849213]
[1765951915481,0.00037757,87081.0,87080.0,0.13845213]
[1765951915685,0.00037757,87081.0,87080.0,0.11559926]
[1765951915899,0.00341388,87081.0,87080.0,0.23632654]
[1765951916229,0.00341388,87081.0,87080.0,0.1531413]
[1765951916395,0.00341388,87081.0,87080.0,0.58782536]
[1765951916549,0.00341388,87081.0,87080.0,0.57404493]
[1765951916756,0.00341388,87081.0,87080.0,0.57504493]
[1765951917142,0.00341388,87081.0,87080.0,0.57204493]
[1765951917416,0.00341388,87081.0,87080.0,0.57404493]
[1765951917619,0.00341388,87081.0,87080.0,0.57604493]
[1765951917780,0.00341388,87081.0,87080.0,0.57404493]
[1765951917981,0.00341388,87081.0,87080.0,0.57604493]
[1765951918382,0.00341388,87081.0,87080.0,0.55780493]
[1765951918723,0.00341388,87081.0,87080.0,0.61647602]
[1765951919138,0.00341388,87081.0,87080.0,0.57604493]
[1765951919902,0.00341388,87081.0,87080.0,0.11925213]
[1765951920101,0.00341388,87081.0,87080.0,0.52602654]
[1765951920317,0.00341388,87081.0,87080.0,0.23532654]
[1765951920500,0.00341388,87081.0,87080.0,0.23332654]
[1765951920702,0.00341388,87081.0,87080.0,0.52202654]
[1765951921084,0.0002,87087.0,87080.0,0.52202654]
[1765951921085,0.0002,87087.0,87086.0,0.22973803]
[1765951921349,0.00016,87087.0,87086.0,0.68560974]
[1765951921581,0.0002,87116.0,87115.0,0.22958158]
[1765951921973,0.0002,87116.0,87115.0,0.23119445]
[1765951922339,0.0002,87116.0,87115.0,0.11355926]
[1765951922551,0.0002,87116.0,87101.0,0.30218092]
[1765951922552,0.01147947,87112.0,87109.0,0.11355926]
[1765951922753,0.01147921,87114.0,87112.0,0.01828]
[1765951922952,0.22958685,87113.0,87112.0,0.01828]
[1765951923157,0.22959212,87111.0,87109.0,0.11362045]
[1765951923316,0.22959212,87111.0,87110.0,0.01828]
[1765951923679,0.22959212,87111.0,87109.0,6.119e-05]
[1765951923893,0.22959212,87111.0,87109.0,0.01834119]
[1765951924097,0.22959212,87111.0,87109.0,6.119e-05]
[1765951924235,0.04721,87110.0,87109.0,6.119e-05]
[1765951924647,0.22959212,87111.0,87109.0,6.119e-05]
[1765951924848,0.23059212,87111.0,87109.0,6.119e-05]
[1765951925894,0.001,87111.0,87109.0,6.119e-05]
[1765951926329,0.24125917,87116.0,87109.0,6.119e-05]
[1765951926330,0.01147907,87115.0,87110.0,0.01147973]
[1765951926531,0.01147947,87112.0,87109.0,0.01154106]
[1765951926737,0.01147934,87113.0,87110.0,0.01147973]
[1765951926963,0.001,87111.0,87110.0,0.01147973]
[1765951927211,0.00194479,87111.0,87110.0,0.01147973]
[1765951927438,0.00094479,87111.0,87109.0,6.119e-05]
[1765951927658,0.01147947,87112.0,87109.0,6.119e-05]
[1765951927877,0.01147934,87113.0,87110.0,0.35463354]
[1765951928084,0.01147934,87113.0,87110.0,0.12503899]
[1765951928740,0.001,87115.0,87112.0,0.24106896]
[1765951928959,0.001,87115.0,87112.0,0.35462822]
[1765951929185,0.01247907,87115.0,87112.0,0.12503873]
[1765951929399,0.01147907,87115.0,87112.0,0.01147947]
[1765951929647,0.24126047,87116.0,87115.0,0.11355926]
[1765951929648,0.0002,87116.0,87115.0,0.11355926]
[1765951929864,0.0002,87116.0,87109.0,6.119e-05]
[1765951929865,0.01147907,87115.0,87109.0,6.119e-05]
[1765951930105,0.22959305,87111.0,87110.0,0.13183926]
[1765951930328,0.22959305,87111.0,87110.0,0.01828]
[1765951930758,0.22959305,87111.0,87109.0,6.119e-05]
[1765951930994,0.22959305,87111.0,87110.0,0.01828]
[1765951931186,0.24106343,87114.0,87110.0,0.01828]
[1765951932115,0.01147934,87113.0,87110.0,0.02975973]
[1765951932321,0.01147934,87113.0,87110.0,0.01828]
[1765951932526,0.001,87111.0,87110.0,0.01828]
[1765951932903,0.22958966,87112.0,87110.0,0.01828]
[1765951933108,0.01147934,87113.0,87110.0,0.01828]
[1765951933310,0.00094479,87111.0,87110.0,0.01828]
[1765951933736,0.00194479,87111.0,87110.0,0.01828]
[1765951933955,0.00094479,87111.0,87109.0,0.24113615]
[1765951934290,0.01147934,87113.0,87112.0,0.11355926]
[1765951934495,0.001,87113.0,87112.0,0.22958949]
[1765951934699,0.001,87113.0,87110.0,0.01824]
[1765951935519,0.01147907,87115.0,87110.0,0.01824]
[1765951935520,0.22958642,87114.0,87110.0,0.01824]
[1765951935696,0.01147934,87113.0,87110.0,0.01824]
[1765951935895,0.001,87111.0,87110.0,0.02971973]
[1765951936048,0.001,87111.0,87110.0,0.01824]
[1765951936260,0.2410682,87113.0,87110.0,0.01824]
[1765951936460,0.2420682,87113.0,87110.0,0.01824]
[1765951936659,0.22959212,87111.0,87110.0,0.01824]
[1765951937495,0.23059212,87111.0,87110.0,0.01824]
[1765951939516,0.11939,87110.0,87109.0,6.119e-05]
[1765951939666,0.1722796,87110.0,87109.0,6.119e-05]
[1765951940255,0.1722796,87110.0,87097.0,0.04176637]
[1765951940256,0.08288,87075.0,87074.0,0.03028492]
[1765951940473,0.2297187,87063.0,87062.0,0.03028492]
[1765951940721,0.01148606,87062.0,87061.0,0.002]
[1765951940951,0.01148606,87062.0,87061.0,0.00237757]
[1765951941888,0.01148606,87062.0,87061.0,0.00037757]
[1765951942120,0.13087606,87062.0,87061.0,0.00037757]
[1765951942584,0.01148606,87062.0,87061.0,0.00037757]
[1765951943338,0.01248606,87062.0,87061.0,0.00037757]
[1765951943585,0.01348606,87062.0,87061.0,0.00037757]
[1765951947628,0.13287606,87062.0,87061.0,0.00037757]
[1765951948781,0.20751534,87062.0,87061.0,0.00037757]
[1765951950003,0.20551534,87062.0,87061.0,0.00037757]
[1765951950206,0.13287606,87062.0,87061.0,0.00037757]
[1765951950403,0.13487606,87062.0,87061.0,0.00037757]
[1765951950970,0.15315606,87062.0,87061.0,0.00037757]
[1765951953127,0.22439959,87062.0,87061.0,0.00037757]
[1765951954658,0.22439959,87062.0,87053.0,0.00136552]
[1765951954659,0.38606245,87054.0,87053.0,0.00136552]
[1765951954863,0.38606245,87054.0,87053.0,0.00143065]
[1765951956068,0.38706245,87054.0,87053.0,0.00143065]
[1765951956270,0.38806245,87054.0,87053.0,0.00143065]
[1765951956874,0.38606245,87054.0,87053.0,0.00143065]
[1765951957109,0.38806245,87054.0,87053.0,0.00143065]
[1765951957730,0.44547263,87054.0,87053.0,0.00143065]
[1765951958139,0.44647263,87054.0,87053.0,6.5e-07]
[1765951958344,0.38906245,87054.0,87053.0,6.5e-07]
[1765951958548,0.31516245,87054.0,87053.0,6.5e-07]
[1765951958933,0.26901245,87054.0,87053.0,6.5e-07]
[1765951959133,0.38929245,87054.0,87053.0,6.5e-07]
[1765951964182,0.31538245,87054.0,87053.0,6.5e-07]
[1765951965638,0.38929245,87054.0,87053.0,6.5e-07]
[1765951971666,0.67999245,87054.0,87053.0,6.5e-07]
[1765951971894,0.73740263,87054.0,87053.0,6.5e-07]
[1765951972064,0.73740263,87054.0,87030.0,0.03028492]
[1765951972065,0.22980317,87031.0,87030.0,0.03028492]
[1765951972271,0.22980317,87031.0,87030.0,6.962e-05]
[1765951972272,0.24056898,87031.0,87030.0,6.962e-05]
[1765951974146,0.24056898,87031.0,87030.0,0.00106962]
[1765951974584,0.36084898,87031.0,87030.0,0.00106962]
[1765951974894,0.28693898,87031.0,87030.0,0.00206962]
[1765951975510,0.36084898,87031.0,87030.0,0.00206962]
[1765951976151,0.13104581,87031.0,87030.0,0.00106962]
[1765951976359,0.01076581,87031.0,87030.0,0.35004756]
[1765951977318,0.01076581,87031.0,87030.0,0.34704756]
[1765951977551,0.01176581,87031.0,87030.0,0.37733248]
[1765951977737,0.01176581,87031.0,87030.0,0.38005768]
[1765951977911,0.01076581,87031.0,87030.0,0.38005768]
[1765951978127,0.01276581,87031.0,87030.0,0.14725187]
[1765951978328,0.36284898,87031.0,87030.0,0.00179482]
[1765951978596,0.01149227,87015.0,87012.0,0.03028492]
[1765951978729,0.24133769,87015.0,87014.0,0.11355926]
[1765951978928,0.25210596,87015.0,87014.0,0.11355926]
[1765951979350,0.35013071,87013.0,87012.0,7.833e-05]
[1765951979549,0.24061898,87013.0,87012.0,7.833e-05]
[1765951979761,0.01076827,87013.0,87012.0,0.23554455]
[1765951979961,0.01076827,87013.0,87012.0,0.11925046]
[1765951980136,0.01076827,87013.0,87012.0,0.34910381]
[1765951981670,0.01076827,87013.0,87012.0,0.35010381]
[1765951981863,0.13104827,87013.0,87012.0,0.0026912]
[1765951982189,0.13104827,87013.0,87012.0,0.00207833]
[1765951982386,0.14828707,87013.0,87012.0,0.00207833]
[1765951982753,0.14828707,87013.0,87012.0,0.00107833]
[1765951983820,0.18845845,87013.0,87012.0,0.00107833]
[1765951984235,0.13104827,87013.0,87012.0,7.833e-05]
[1765951984654,0.13204827,87013.0,87012.0,0.00064606]
[1765951985036,0.13304827,87013.0,87012.0,0.00064606]
[1765951985697,0.13304827,87013.0,86999.0,0.0004]
[1765951985698,0.04534,87000.0,86999.0,0.0004]
[1765951985908,0.13064827,87000.0,86999.0,0.00050015]
[1765951986113,0.14788964,87000.0,86999.0,0.00050015]
[1765951986928,0.13064827,87000.0,86999.0,0.00050015]
[1765951987266,0.20529982,87000.0,86999.0,0.00050015]
[1765951987452,0.14788964,87000.0,86999.0,0.00050015]
[1765951987987,0.01149121,87023.0,87013.0,0.002]
[1765951988210,0.2298375,87018.0,87013.0,0.00161287]
[1765951988429,0.01149213,87016.0,87015.0,0.002]
[1765951988631,0.02222569,87016.0,87013.0,0.0131054]
[1765951988837,0.01073356,87015.0,87013.0,0.00161287]
[1765951989053,0.24058163,87014.0,87013.0,0.00161287]
[1765951989265,0.01073356,87014.0,87013.0,0.00161287]
[1765951990439,0.01073356,87015.0,87013.0,0.00161287]
[1765951990658,0.01073356,87014.0,87013.0,0.00161287]
[1765951990860,0.01073356,87015.0,87013.0,0.00161287]
[1765951991072,0.01073356,87014.0,87013.0,0.00161287]
[1765951991265,0.22984807,87014.0,87013.0,0.00161287]
[1765951991469,0.01149293,87010.0,87005.0,0.22987108]
[1765951992050,0.01149253,87013.0,87007.0,0.24135897]
[1765951992261,0.01149266,87012.0,87009.0,0.01149306]
[1765951993278,0.01149279,87011.0,87005.0,0.24297754]
[1765951994381,0.01149279,87011.0,87007.0,0.22986656]
[1765951995305,0.01149319,87008.0,87005.0,0.00161287]